bitfinex-derivatives/quotes_ETHF0:USTF0_20250518
["timestamp","ask_amount","ask_price","bid_price","bid_amount"]
[1747559065830,2.77947754,2521.6,2521.5,4.47043399]
[1747559066023,2.77947754,2521.6,2521.5,5.26336406]
[1747559066328,2.77947754,2521.6,2521.5,5.26336117]
[1747559066628,2.77947754,2521.6,2521.5,4.47043117]
[1747559066828,2.77947754,2521.6,2521.5,4.47043054]
[1747559067020,2.77947754,2521.6,2521.5,5.26336054]
[1747559067331,2.77947754,2521.6,2521.5,5.26336023]
[1747559067529,2.77947754,2521.6,2521.5,4.47043044]
[1747559067722,2.77947754,2521.6,2521.5,4.47043057]
[1747559068032,2.77947754,2521.6,2521.5,4.47043041]
[1747559068327,2.11567754,2521.6,2521.5,5.13943]
[1747559068526,2.11567754,2521.6,2521.5,5.2633595]
[1747559068727,2.11567754,2521.6,2521.5,5.26335948]
[1747559068924,2.11567754,2521.6,2521.5,5.26335926]
[1747559069127,2.11567754,2521.6,2521.5,4.47042923]
[1747559069629,2.11567754,2521.6,2521.5,5.13943]
[1747559073923,0.00655754,2521.6,2521.5,5.13943]
[1747559074626,0.79944754,2521.6,2521.5,5.13943]
[1747559076231,0.00655754,2521.6,2521.5,5.23161003]
[1747559076921,3.16266659,2522.3,2521.5,15.80116807]
[1747559077232,4.50746659,2522.3,2522.0,3.2078]
[1747559077428,3.16266659,2522.3,2522.2,0.79271]
[1747559077822,3.16266659,2522.3,2522.2,2.15571]
[1747559079943,3.16266659,2522.3,2522.2,1.363]
[1747559080234,3.16266659,2522.3,2522.2,2.0186]
[1747559080422,3.95534659,2522.3,2522.2,2.0186]
[1747559080626,3.95534659,2522.3,2522.2,2.81131]
[1747559080827,3.16266659,2522.3,2522.2,2.81131]
[1747559081436,3.95533659,2522.3,2522.2,2.81131]
[1747559081635,3.16266659,2522.3,2522.2,2.81131]
[1747559081933,3.95533659,2522.3,2522.2,2.81131]
[1747559082133,5.22783659,2522.3,2522.2,2.81131]
[1747559082337,5.22783659,2522.3,2522.2,2.0186]
[1747559082737,4.43516659,2522.3,2522.2,2.81131]
[1747559083038,3.16266659,2522.3,2522.2,2.81131]
[1747559085536,3.95533659,2522.3,2522.2,2.81131]
[1747559085724,3.16266659,2522.3,2522.2,2.81131]
[1747559085928,0.79266,2522.4,2522.3,0.79267]
[1747559086130,0.79266,2522.4,2522.3,2.05097]
[1747559086330,0.79264,2522.4,2522.3,2.05095]
[1747559086949,2.12253,2522.5,2522.4,0.79264]
[1747559087233,2.12253,2522.5,2522.4,4.3163]
[1747559088939,2.12253,2522.5,2522.4,3.058]
[1747559090344,2.12253,2522.5,2522.4,3.15018003]
[1747559090644,2.12253,2522.5,2522.4,3.94282003]
[1747559092247,1.3299,2522.5,2522.4,3.94282003]
[1747559092447,0.79258,2522.6,2522.5,0.79261]
[1747559092747,1.3097,2522.7,2522.6,0.79258]
[1747559092946,2.10225,2522.7,2522.6,0.79258]
[1747559093148,1.3097,2522.7,2522.6,2.66788]
[1747559093340,0.6864,2522.8,2522.6,2.66788]
[1747559093341,0.79253,2522.8,2522.7,0.79255]
[1747559093540,0.79253,2522.8,2522.7,2.03115]
[1747559093734,1.4665,2522.9,2522.8,0.79252]
[1747559093937,1.4665,2522.9,2522.8,2.03112]
[1747559094144,1.4665,2522.9,2522.8,5.08912]
[1747559095952,1.4665,2522.9,2522.8,4.2966]
[1747559096350,1.4665,2522.9,2522.8,5.08912]
[1747559096550,1.4665,2522.9,2522.8,3.85052]
[1747559097550,0.674,2522.9,2522.8,3.85052]
[1747559098247,1.46649,2522.9,2522.8,3.85052]
[1747559098448,2.77589,2522.9,2522.8,3.85052]
[1747559098844,1.9834,2522.9,2522.8,3.85052]
[1747559099050,1.3094,2522.9,2522.8,3.85052]
[1747559099353,2.12573,2523.1,2523.0,0.79246]
[1747559099542,0.79243,2523.1,2523.0,0.79246]
[1747559099941,0.79243,2523.1,2523.0,1.41156]
[1747559100154,0.79243,2523.1,2523.0,4.46956]
[1747559100347,0.79243,2523.1,2523.0,3.6771]
[1747559101748,0.79243,2523.1,2523.0,4.46955]
[1747559102048,0.79243,2523.1,2523.0,3.6771]
[1747559102249,0.79243,2523.1,2523.0,4.46955]
[1747559102448,1.3094,2523.2,2523.1,0.79242]
[1747559102843,1.3094,2523.2,2523.1,2.12332]
[1747559103153,3.2078,2523.4,2523.3,0.79236]
[1747559103347,0.79236,2523.3,2523.2,2.12327]
[1747559103550,2.04606,2523.3,2523.2,2.12327]
[1747559105557,2.04606,2523.3,2523.1,3.7226]
[1747559105558,0.79239,2523.2,2523.1,3.058]
[1747559105756,2.72499,2523.2,2523.1,3.058]
[1747559106359,0.79242,2523.1,2523.0,7.67735]
[1747559106654,2.06702,2523.1,2523.0,7.67735]
[1747559107956,0.6789,2523.2,2523.1,0.79242]
[1747559108147,0.6789,2523.2,2523.1,2.14472]
[1747559108955,1.47129,2523.2,2523.1,2.14472]
[1747559109356,0.6789,2523.2,2523.1,2.14472]
[1747559109746,2.82949,2523.2,2523.1,2.14472]
[1747559110150,2.82949,2523.2,2523.1,0.79242]
[1747559113761,2.82949,2523.2,2523.1,0.79242]
[1747559114561,2.0371,2523.2,2523.1,0.79242]
[1747559114957,2.82949,2523.2,2523.1,0.79242]
[1747559115262,0.79242,2523.1,2523.0,6.2658]
[1747559115564,2.0145,2523.1,2523.0,7.05826]
[1747559116359,2.80692,2523.1,2523.0,7.05826]
[1747559116657,2.80692,2523.1,2523.0,3.058]
[1747559117263,2.80692,2523.1,2523.0,3.85045]
[1747559117763,2.80692,2523.1,2523.0,7.05825]
[1747559118762,2.80692,2523.1,2523.0,3.85045]
[1747559119866,2.80692,2523.1,2523.0,3.15018003]
[1747559120160,2.0145,2523.1,2523.0,3.94263003]
[1747559121358,2.80692,2523.1,2523.0,3.94263003]
[1747559121858,2.0145,2523.1,2523.0,3.94263003]
[1747559122162,2.0145,2523.1,2523.0,7.15043003]
[1747559122756,1.342,2523.1,2523.0,7.15043003]
[1747559123564,2.13442,2523.1,2523.0,7.15043003]
[1747559124167,1.342,2523.1,2523.0,7.15043003]
[1747559125261,2.13442,2523.1,2523.0,7.15043003]
[1747559125566,2.13442,2523.1,2523.0,3.15018003]
[1747559126159,0.79252,2522.8,2522.7,3.2078]
[1747559126364,0.79252,2522.8,2522.2,1.98175]
[1747559126365,1.98122,2522.9,2522.2,3.2078]
[1747559126574,4.5318,2523.0,2522.2,3.2078]
[1747559126575,0.79267,2522.3,2522.2,3.2078]
[1747559126763,0.79267,2522.3,2522.2,4.00051]
[1747559126962,1.324,2522.5,2522.2,3.2078]
[1747559127168,0.79264,2522.4,2522.2,4.00048]
[1747559127372,1.324,2522.3,2522.2,4.00048]
[1747559127559,2.77248,2522.3,2522.2,3.2078]
[1747559127765,0.79271,2522.2,2522.1,3.058]
[1747559127961,2.68141,2522.2,2522.1,3.058]
[1747559128163,2.68141,2522.2,2522.0,3.85076]
[1747559128366,2.68141,2522.2,2522.1,0.79274]
[1747559128670,1.8887,2522.2,2522.1,0.79274]
[1747559128879,2.68141,2522.2,2522.1,0.79274]
[1747559129063,1.8887,2522.2,2522.1,0.79274]
[1747559130572,1.8887,2522.2,2522.1,1.42334]
[1747559130969,2.68142,2522.2,2522.0,5.8335]
[1747559131269,1.3,2522.1,2522.0,6.62627]
[1747559131667,0.6558,2522.3,2522.2,0.79271]
[1747559131871,1.9685,2522.7,2522.2,3.2078]
[1747559132166,1.3,2522.6,2522.5,0.79261]
[1747559133265,1.3,2522.6,2522.5,3.85061]
[1747559133477,1.9685,2523.0,2522.9,0.79249]
[1747559133666,1.3,2523.0,2522.9,4.00029]
[1747559134275,1.3,2523.0,2522.9,7.05829]
[1747559134975,1.44971,2523.2,2523.1,0.79242]
[1747559135272,2.78951,2523.2,2523.1,0.79242]
[1747559135675,0.79242,2523.1,2523.0,2.04263]
[1747559135978,0.79246,2523.0,2522.9,7.79335003]
[1747559136275,0.79246,2523.0,2522.9,0.09218003]
[1747559137177,9.84606,2523.0,2522.9,3.15018003]
[1747559138275,16.8346,2523.0,2522.9,3.85049]
[1747559138475,9.0536,2523.0,2522.9,3.85049]
[1747559139074,9.0536,2523.0,2522.9,3.94267003]
[1747559139274,9.84606,2523.0,2522.9,3.94267003]
[1747559139778,9.84606,2523.0,2522.9,3.15018003]
[1747559139972,9.84606,2523.0,2522.9,3.94267003]
[1747559140177,9.84606,2523.0,2522.9,3.15018003]
[1747559143789,2.06506,2523.0,2522.9,3.15018003]
[1747559144286,2.06506,2523.0,2522.9,3.94267003]
[1747559144685,2.06506,2523.0,2522.9,3.15018003]
[1747559144881,2.06506,2523.0,2522.9,4.41678003]
[1747559145085,2.06506,2523.0,2522.9,5.20927003]
[1747559145286,8.4383,2523.2,2523.0,0.79246]
[1747559145584,0.79245,2523.1,2523.0,1.2666]
[1747559145780,2.03795,2523.1,2523.0,2.05906]
[1747559146089,2.03795,2523.1,2523.0,4.3246]
[1747559147889,2.03795,2523.1,2523.0,5.11706]
[1747559148389,2.03795,2523.1,2523.0,4.3246]
[1747559148589,0.6573,2523.2,2523.0,4.3246]
[1747559148786,0.79242,2523.1,2523.0,5.11704]
[1747559148988,0.79242,2523.1,2523.0,4.3246]
[1747559149189,2.07252,2523.1,2523.0,4.3246]
[1747559149588,2.07252,2523.1,2523.0,5.11706]
[1747559150594,0.79242,2523.1,2523.0,5.11706]
[1747559151286,0.79242,2523.1,2523.0,5.20924003]
[1747559152996,0.79242,2523.1,2523.0,4.41678003]
[1747559153198,2.10162,2523.1,2523.0,4.41678003]
[1747559153490,2.10162,2523.1,2523.0,5.92458003]
[1747559155389,2.10162,2523.1,2523.0,7.20068003]
[1747559156398,2.10162,2523.1,2523.0,7.99313003]
[1747559156899,2.10162,2523.1,2523.0,7.20068003]
[1747559158700,2.10162,2523.1,2523.0,7.99313003]
[1747559159403,2.10162,2523.1,2523.0,7.20068003]
[1747559160403,2.10162,2523.1,2523.0,5.92458003]
[1747559161697,7.10162,2523.1,2523.0,1.23512884]
[1747559161904,0.79261,2522.5,2522.4,1.97571542]
[1747559162100,0.79261,2522.5,2522.4,1.18308542]
[1747559162302,0.79261,2522.5,2522.4,2.28015354]
[1747559163207,0.79261,2522.5,2522.4,5.33815354]
[1747559163708,0.79261,2522.5,2522.4,3.058]
[1747559164700,0.79261,2522.5,2522.4,3.15018003]
[1747559165106,0.79261,2522.5,2522.4,3.94282003]
[1747559165301,0.79261,2522.5,2522.4,3.15018003]
[1747559165501,0.79261,2522.5,2522.4,3.94282003]
[1747559165809,2.6899,2522.7,2522.4,3.15018003]
[1747559166007,3.48246,2522.7,2522.6,0.79258]
[1747559166209,0.79252,2522.8,2522.7,0.79253]
[1747559166809,3.94766746,2523.0,2522.9,0.79249]
[1747559167210,3.15519746,2523.0,2522.9,3.85049]
[1747559167404,1.243,2523.1,2523.0,0.79246]
[1747559167609,0.79242,2523.1,2523.0,2.08566]
[1747559167908,0.79242,2523.1,2523.0,2.74696]
[1747559168104,0.79242,2523.1,2523.0,5.80496]
[1747559168503,1.3532,2523.3,2523.0,5.0125]
[1747559168707,0.79238,2523.3,2523.2,0.79238]
[1747559169116,0.79238,2523.3,2523.2,1.2932]
[1747559169313,0.79238,2523.3,2523.1,3.7078]
[1747559169314,0.79239,2523.2,2523.1,3.058]
[1747559169613,2.14559,2523.2,2523.1,3.058]
[1747559170312,0.79242,2523.1,2523.0,3.058]
[1747559170512,2.15842,2523.1,2523.0,3.058]
[1747559171613,0.79242,2523.2,2523.1,0.79242]
[1747559171816,0.79242,2523.2,2523.1,2.70832]
[1747559172716,0.79242,2523.2,2523.1,1.9159]
[1747559173216,0.79242,2523.2,2523.1,1.297]
[1747559173608,0.79242,2523.2,2523.1,2.08942]
[1747559174114,0.79239,2523.2,2523.1,2.0894]
[1747559174318,14.44785,2523.4,2523.3,0.79236]
[1747559174505,5.36615,2523.4,2523.3,0.79236]
[1747559174708,8.4212,2523.6,2523.4,0.79232]
[1747559174907,9.762,2523.6,2523.3,1.3169]
[1747559175109,0.79231,2523.5,2523.4,1.47741]
[1747559175309,0.79231,2523.5,2523.4,2.002]
[1747559175716,2.13311,2523.5,2523.4,2.002]
[1747559175911,2.13311,2523.5,2523.4,2.79433]
[1747559176112,2.13311,2523.5,2523.4,5.85233]
[1747559176317,0.79229,2523.6,2523.5,0.79229]
[1747559176521,0.79229,2523.6,2523.5,1.3374]
[1747559176712,0.79229,2523.6,2523.5,2.1297]
[1747559177114,0.79229,2523.6,2523.5,5.1877]
[1747559177320,0.79229,2523.6,2523.5,4.3954]
[1747559179620,0.79229,2523.6,2523.5,3.058]
[1747559180121,1.98084,2523.4,2522.9,8.4611]
[1747559180322,1.924,2523.3,2523.0,1.3521]
[1747559180523,2.547,2523.3,2523.0,1.9865]
[1747559180722,0.79242,2523.1,2523.0,1.9865]
[1747559181218,0.79242,2523.1,2523.0,5.83695]
[1747559181420,2.547,2523.3,2523.0,8.2523]
[1747559181728,2.07998,2523.3,2523.2,0.79239]
[1747559182223,0.79238,2523.3,2523.2,0.79239]
[1747559182624,1.2876,2523.4,2523.2,0.79239]
[1747559182625,0.79233,2523.4,2523.3,0.79236]
[1747559183226,0.79232,2523.5,2523.4,0.79231]
[1747559183428,0.79232,2523.5,2523.4,2.80461]
[1747559184228,0.79232,2523.5,2523.4,5.86261]
[1747559186227,2.15438,2523.6,2523.5,0.7923]
[1747559186434,2.15438,2523.6,2523.5,2.0715]
[1747559186731,0.7923,2523.5,2523.4,4.52002]
[1747559186933,2.1499,2523.5,2523.4,4.52002]
[1747559187634,0.7923,2523.5,2523.4,5.79922]
[1747559191534,0.7923,2523.6,2523.5,0.79227]
[1747559191729,0.7923,2523.6,2523.5,2.07457]
[1747559191929,0.7923,2523.6,2523.5,2.16675003]
[1747559192129,0.7923,2523.6,2523.5,5.22475003]
[1747559192432,0.79227,2523.6,2523.5,5.22476003]
[1747559192635,2.09647,2523.6,2523.5,4.43248003]
[1747559192825,2.09647,2523.6,2523.5,3.058]
[1747559196338,0.79233,2523.4,2523.3,8.39025]
[1747559196635,0.79233,2523.4,2523.3,8.39026]
[1747559196830,0.79233,2523.4,2523.3,6.2658]
[1747559197031,2.10663,2523.4,2523.3,6.2658]
[1747559197333,2.10663,2523.4,2523.3,7.05816]
[1747559197526,2.10663,2523.4,2523.3,6.2658]
[1747559198137,2.10663,2523.4,2523.3,7.05816]
[1747559198638,2.10663,2523.4,2523.3,7.68976]
[1747559199540,2.10663,2523.4,2523.3,8.78305507]
[1747559200138,2.10663,2523.4,2523.3,7.99069507]
[1747559200342,2.10663,2523.4,2523.3,7.35909507]
[1747559200831,2.10663,2523.4,2523.3,8.15145507]
[1747559202330,0.79232,2523.5,2523.4,0.79233]
[1747559202531,0.79232,2523.5,2523.4,2.07443]
[1747559203042,0.79232,2523.5,2523.4,3.16772507]
[1747559203247,0.79232,2523.5,2523.4,6.22572507]
[1747559207146,0.7923,2523.6,2523.5,0.88448003]
[1747559207346,0.7923,2523.6,2523.5,2.18768003]
[1747559207648,0.7923,2523.6,2523.5,2.85238003]
[1747559207938,0.7923,2523.6,2523.5,3.9456751]
[1747559208144,0.7923,2523.6,2523.5,7.0036751]
[1747559208542,0.7923,2523.6,2523.5,6.2113751]
[1747559208746,2.1619,2523.6,2523.5,6.2113751]
[1747559208945,2.1619,2523.6,2523.5,4.2434751]
[1747559209148,2.1619,2523.6,2523.5,4.15129507]
[1747559210253,2.1619,2523.6,2523.5,4.94359507]
[1747559211950,1.98029,2524.1,2523.5,11.92529507]
[1747559212254,0.79224,2523.8,2523.7,0.79222]
[1747559212447,0.79224,2523.8,2523.7,2.07282]
[1747559212753,0.79224,2523.8,2523.7,3.81271507]
[1747559213442,0.79224,2523.8,2523.7,3.02049507]
[1747559214452,0.79224,2523.8,2523.7,1.09329507]
[1747559214845,0.79224,2523.8,2523.7,2.36049507]
[1747559216355,0.79224,2523.8,2523.7,3.27655372]
[1747559216544,0.79224,2523.8,2523.7,2.48431372]
[1747559217557,0.79224,2523.8,2523.7,1.21711372]
[1747559217748,1.44314,2523.8,2523.7,1.21711803]
[1747559219156,1.44314,2523.8,2523.7,0.12382296]
[1747559219855,0.79223,2523.7,2523.6,3.058]
[1747559220055,2.73743,2523.7,2523.6,3.18182769]
[1747559220449,2.73743,2523.7,2523.6,4.54522769]
[1747559220854,2.73743,2523.7,2523.6,4.54522555]
[1747559221356,2.08523,2523.7,2523.6,1.48722555]
[1747559222059,2.08523,2523.7,2523.6,2.58299241]
[1747559223058,2.08523,2523.7,2523.6,2.58298603]
[1747559223259,2.08523,2523.7,2523.6,3.37525603]
[1747559223455,2.08523,2523.7,2523.6,2.58298603]
[1747559224058,2.08523,2523.7,2523.6,1.21958603]
[1747559224561,2.08523,2523.7,2523.6,1.21959148]
[1747559225361,2.08523,2523.7,2523.6,1.31177151]
[1747559225662,2.08523,2523.7,2523.6,0.21600465]
[1747559226259,0.79223,2523.7,2523.6,1.00827465]
[1747559226460,0.79223,2523.7,2523.6,2.94527133]
[1747559228459,0.79223,2523.7,2523.6,2.15300133]
[1747559228665,0.79223,2523.7,2523.6,4.04139812]
[1747559228867,2.12823,2523.7,2523.6,4.04139812]
[1747559229065,2.12823,2523.7,2523.6,3.24912812]
[1747559229461,2.12823,2523.7,2523.6,3.15694809]
[1747559230159,2.12823,2523.7,2523.6,3.94921847]
[1747559230565,2.12823,2523.7,2523.6,3.15694847]
[1747559231265,2.12823,2523.7,2523.6,3.94921847]
[1747559231867,0.79223,2523.7,2523.6,3.94921847]
[1747559232169,0.79223,2523.7,2523.6,3.94921283]
[1747559232468,0.79223,2523.7,2523.6,4.04139286]
[1747559232968,0.79223,2523.7,2523.6,1.31212286]
[1747559233465,0.79223,2523.7,2523.6,2.01221283]
[1747559233670,0.79223,2523.7,2523.6,3.31421283]
[1747559233969,0.79223,2523.7,2523.6,3.31421431]
[1747559235980,0.79223,2523.7,2523.6,3.31421439]
[1747559237279,0.79223,2523.7,2523.6,6.52201439]
[1747559237781,0.79223,2523.7,2523.6,6.52201408]
[1747559239284,0.79222,2523.8,2523.7,0.7922]
[1747559239483,0.79222,2523.8,2523.7,2.94431729]
[1747559239686,0.79222,2523.8,2523.7,2.94431466]
[1747559241579,0.79222,2523.8,2523.7,2.94431542]
[1747559241779,0.79222,2523.8,2523.7,4.04044221]
[1747559242289,0.79222,2523.8,2523.7,3.24824221]
[1747559242486,2.14432,2523.8,2523.7,1.21994221]
[1747559243192,2.14432,2523.8,2523.7,3.99364221]
[1747559243494,2.14432,2523.8,2523.7,3.99364566]
[1747559243689,2.14432,2523.8,2523.7,4.78587566]
[1747559243891,2.14432,2523.8,2523.7,3.99364566]
[1747559245194,2.14432,2523.8,2523.7,3.99364411]
[1747559247095,2.14432,2523.8,2523.7,3.99364509]
[1747559249002,2.14432,2523.8,2523.7,5.3190437]
[1747559249202,2.14432,2523.8,2523.7,5.9918437]
[1747559249501,0.79222,2523.8,2523.7,6.7840737]
[1747559250000,1.4662,2523.9,2523.8,0.7922]
[1747559250198,1.4662,2523.9,2523.8,2.27061691]
[1747559250499,1.4662,2523.9,2523.8,2.93641691]
[1747559250996,1.4662,2523.9,2523.8,4.03253761]
[1747559251202,1.4662,2523.9,2523.8,6.29833761]
[1747559251703,1.4662,2523.9,2523.8,7.09053761]
[1747559251899,0.79217,2523.9,2523.8,7.09053761]
[1747559252801,0.79217,2523.9,2523.8,7.09053672]
[1747559254709,0.79217,2523.9,2523.8,7.09053619]
[1747559256906,0.79217,2523.9,2523.8,7.18271622]
[1747559258509,0.79217,2523.9,2523.8,7.1827155]
[1747559259999,2.06674,2524.1,2524.0,0.79214]
[1747559260200,2.06674,2524.1,2524.0,3.97394868]
[1747559260407,2.06674,2524.1,2524.0,3.97394403]
[1747559260908,2.0437,2524.2,2524.1,0.79211]
[1747559261101,2.0437,2524.2,2524.1,2.20331403]
[1747559261302,2.0437,2524.2,2524.1,2.87931403]
[1747559262208,2.0437,2524.2,2524.1,2.08720403]
[1747559262408,2.0437,2524.2,2524.1,0.79980403]
[1747559262807,2.0437,2524.2,2524.1,1.59191403]
[1747559264110,2.0437,2524.2,2524.1,1.59191123]
[1747559264512,2.0437,2524.2,2524.1,0.79980123]
[1747559266114,2.0437,2524.2,2524.1,0.79980184]
[1747559266416,2.0437,2524.2,2524.1,0.12380184]
[1747559268714,5.2515,2524.2,2524.1,2.89700184]
[1747559269517,2.0437,2524.2,2524.1,2.89700184]
[1747559270913,13.0175,2524.2,2524.1,2.89700184]
[1747559271818,13.0175,2524.2,2524.1,2.89701605]
[1747559272019,18.0175,2524.2,2524.1,2.89701605]
[1747559272520,13.0175,2524.2,2524.1,2.89701605]
[1747559273315,18.0175,2524.2,2524.1,2.04603605]
[1747559273522,18.0175,2524.2,2524.1,0.12381605]
[1747559273715,0.7922,2523.8,2523.7,3.2078]
[1747559273914,0.7922,2523.8,2523.7,3.3316206]
[1747559274920,2.0524,2523.8,2523.7,3.3316206]
[1747559275519,2.0524,2523.8,2523.7,3.33162856]
[1747559276522,9.8174,2523.8,2523.7,3.33162856]
[1747559276715,9.8174,2523.8,2523.7,0.12382856]
[1747559279320,0.7923,2523.5,2523.4,3.2078]
[1747559279520,1.2581,2523.7,2523.5,1.9816]
[1747559279724,2.05033,2523.7,2523.6,0.12383245]
[1747559281921,7.05033,2523.7,2523.6,0.12383245]
[1747559282126,7.05033,2523.7,2523.6,2.45e-06]
[1747559282321,10.10833,2523.7,2523.6,2.45e-06]
[1747559282524,0.79227,2523.6,2523.5,2.45e-06]
[1747559282725,13.10557,2523.6,2523.5,2.45e-06]
[1747559283021,0.79242,2523.1,2523.0,1.18308542]
[1747559283620,2.07092,2523.1,2523.0,1.18308542]
[1747559284717,2.07092,2523.1,2522.8,1.57744722]
[1747559284926,0.79252,2522.8,2522.7,0.6499]
[1747559285429,0.79252,2522.8,2522.7,2.5734]
[1747559285928,0.79255,2522.7,2522.6,3.2078]
[1747559286129,2.06125,2522.7,2522.6,3.2078]
[1747559287724,0.79261,2522.5,2522.4,3.71000982]
[1747559287928,0.79261,2522.5,2522.4,2.39528003]
[1747559288324,2.06131,2522.5,2522.4,2.3031]
[1747559288727,0.79264,2522.4,2522.3,1.9328]
[1747559289227,7.77,2522.7,2522.3,4.9908]
[1747559289422,0.79261,2522.5,2522.4,1.24]
[1747559290228,0.79261,2522.5,2522.4,4.298]
[1747559291333,0.79261,2522.5,2522.4,5.09064]
[1747559291729,0.79261,2522.5,2522.4,4.298]
[1747559294437,0.79261,2522.5,2522.4,4.42188852]
[1747559295632,0.79261,2522.5,2522.4,4.42188556]
[1747559297139,0.79261,2522.5,2522.4,3.18188556]
[1747559297637,0.79261,2522.5,2522.4,3.18189655]
[1747559298240,0.79261,2522.5,2522.4,0.12389655]
[1747559298945,0.7926,2522.6,2522.4,0.12389655]
[1747559299151,0.7926,2522.6,2522.5,5.46148655]
[1747559299853,0.79257,2522.7,2522.6,0.79256]
[1747559300049,0.79257,2522.7,2522.6,0.76189655]
[1747559301352,0.79257,2522.7,2522.6,0.12387984]
[1747559301548,2.74977,2522.7,2522.6,0.12387984]
[1747559304863,18.28277,2522.7,2522.6,0.12387984]
[1747559305155,2.74977,2522.7,2522.6,0.12387984]
[1747559305357,18.28277,2522.7,2522.6,0.12387984]
[1747559306558,2.74977,2522.7,2522.6,0.12387984]
[1747559306757,18.28277,2522.7,2522.6,0.12387984]
[1747559306958,0.79258,2522.6,2522.5,3.7255]
[1747559307160,0.79258,2522.6,2522.5,3.84938407]
[1747559307357,2.03588,2522.6,2522.5,3.18188407]
[1747559308162,2.03588,2522.6,2522.5,0.12388407]
[1747559310258,7.03588,2522.6,2522.5,0.12388407]
[1747559310764,0.79261,2522.5,2522.4,0.09218003]
[1747559310963,5.93871,2522.5,2522.4,0.21608164]
[1747559311169,5.93871,2522.5,2522.4,3.27408164]
[1747559311664,5.93871,2522.5,2522.4,3.27408227]
[1747559312262,5.93871,2522.5,2522.4,0.21608227]
[1747559312457,5.93871,2522.5,2522.4,0.09218003]
[1747559312865,13.70471,2522.5,2522.4,0.2160821]
[1747559313167,13.70471,2522.5,2522.4,3.27407974]
[1747559313969,13.70471,2522.5,2522.4,3.27408003]
[1747559315369,5.93871,2522.5,2522.4,3.27408003]
[1747559315574,21.47271,2522.5,2522.4,3.27408003]
[1747559315767,21.47271,2522.5,2522.4,3.27407988]
[1747559316772,21.47271,2522.5,2522.4,2.14137988]
[1747559317069,21.47271,2522.5,2522.4,0.21607988]
[1747559317269,26.47271,2522.5,2522.4,9.88e-06]
[1747559317767,0.79267,2522.3,2522.2,9.88e-06]
[1747559318174,0.79283,2521.8,2521.7,1.18308542]
[1747559318471,16.32683,2521.8,2521.7,1.18308542]
[1747559318878,17.62603,2521.8,2521.7,1.18308542]
[1747559319574,0.79293,2521.5,2521.4,0.6724]
[1747559320177,0.79293,2521.5,2521.4,3.7304]
[1747559320875,0.79293,2521.5,2521.4,5.0331]
[1747559321274,0.79291,2521.6,2521.4,5.82606]
[1747559321480,0.79283,2521.8,2521.5,1.3027]
[1747559321778,8.55985,2521.8,2521.5,4.5105]
[1747559321974,0.79286,2521.7,2521.6,0.79289]
[1747559322171,0.79286,2521.7,2521.6,1.3027]
[1747559323170,0.79279,2522.0,2521.9,0.7928]
[1747559323364,8.55976,2522.1,2522.0,0.79277]
[1747559323670,0.79276,2522.1,2522.0,0.79277]
[1747559323880,0.79277,2522.0,2521.9,2.66748]
[1747559324074,0.79276,2522.1,2522.0,0.79276]
[1747559324368,0.79276,2522.1,2522.0,5.09766]
[1747559325574,0.79272,2522.2,2522.1,0.79272]
[1747559326281,0.79272,2522.2,2522.1,4.00052]
[1747559326876,7.767,2522.4,2522.3,0.79266]
[1747559326877,0.79266,2522.4,2522.3,0.79266]
[1747559327082,0.79267,2522.4,2522.3,0.79267]
[1747559327880,12.24029746,2522.8,2522.3,5.0]
[1747559328180,0.79258,2522.7,2522.6,0.79258]
[1747559329385,0.79258,2522.7,2522.6,0.91645604]
[1747559329571,0.79258,2522.7,2522.6,1.36077604]
[1747559330181,0.79258,2522.7,2522.6,2.15335604]
[1747559331082,0.79258,2522.7,2522.6,2.24553607]
[1747559332886,0.79258,2522.7,2522.6,2.24553454]
[1747559333179,0.79258,2522.7,2522.6,1.45295454]
[1747559333975,2.14698,2522.7,2522.6,1.45295454]
[1747559334673,2.14698,2522.7,2522.6,1.45296054]
[1747559335883,2.14698,2522.7,2522.6,2.24554054]
[1747559336287,0.79254,2522.8,2522.7,0.79255]
[1747559336483,0.79254,2522.8,2522.7,0.91643051]
[1747559338785,0.79254,2522.8,2522.7,1.56143051]
[1747559340189,0.79254,2522.8,2522.7,2.05408051]
[1747559340389,2.06104,2522.8,2522.7,2.05407413]
[1747559341089,2.06104,2522.8,2522.7,2.84662413]
[1747559341287,4.00032,2522.9,2522.8,0.79252]
[1747559341590,0.79252,2522.9,2522.8,2.28959056]
[1747559341891,0.79252,2522.9,2522.8,1.49707075]
[1747559342088,0.79252,2522.9,2522.8,4.55507075]
[1747559342289,0.79252,2522.9,2522.8,4.5550729]
[1747559342988,5.35132,2522.9,2522.8,3.1818729]
[1747559343581,2.14352,2522.9,2522.8,3.18187837]
[1747559345292,2.14352,2522.9,2522.8,3.2740584]
[1747559351198,2.14352,2522.9,2522.8,3.27405866]
[1747559353099,2.14352,2522.9,2522.8,3.27406106]
[1747559354999,9.90552,2522.9,2522.8,3.27406106]
[1747559355601,13.06071746,2522.9,2522.8,3.27406106]
[1747559356792,13.06071746,2522.9,2522.8,3.27406134]
[1747559357498,18.06071746,2522.9,2522.8,3.27407018]
[1747559357697,18.06071746,2522.9,2522.8,2.40711018]
[1747559357903,18.06071746,2522.9,2522.8,1.59819018]
[1747559358199,18.06071746,2522.9,2522.8,1.8e-07]
[1747559358504,14.90552,2522.9,2522.8,2.1e-07]
[1747559360001,2.14352,2522.9,2522.8,2.1e-07]
[1747559360305,9.90652,2522.9,2522.8,3.05800021]
[1747559361715,0.79252,2522.9,2522.8,4.39910021]
[1747559362006,3.2078,2523.0,2522.8,4.39910021]
[1747559362203,3.16138963,2523.1,2523.0,0.79245]
[1747559362700,3.16138963,2523.1,2523.0,2.11295]
[1747559362900,3.16138963,2523.1,2523.0,7.11295]
[1747559363206,3.16138963,2523.1,2523.0,10.17095]
[1747559363404,3.16138963,2523.1,2523.0,11.26584617]